Cogmind - Beta 17 @@@ ROGUE MODE // 2026.07.26 @ 00:06:52 Player: OBLIQUE Result: Destroyed by Y-45 Defender with Beam Rifle Performance ------------- Evolutions (2) 1000 Regions Visited (4) 800 Robots Destroyed (58) 290 Value Destroyed (1602) 1602 Prototype IDs (3) 60 Alien Tech Used (0) 0 Bonus (365) 365 TOTAL SCORE: 4117 Bonus ------- High Alert Combat Kills 224 Follower Combat Kills 155 Friendly Fire -14 Cogmind --------- Core Integrity 0/550 Matter 213/300 Energy 99/100 System Corruption 4% Temperature Cool (9) Movement Core (50) Location -8/Storage Parts ------- > --- POWER (2) -------- (None) > --- PROPULSION (2) --- (None) > --- UTILITY (5) ------ (None) > --- WEAPON (2) ------- (None) > --- INVENTORY (5) ---- Improved Heat Sink Advanced EMP Blaster Advanced EMP Blaster Advanced EMP Blaster Advanced EMP Blaster Peak State ------------ > --- POWER ------------ Improved Ion Engine Light Angular Momentum Engine > --- PROPULSION ------- Wheel Wheel > --- UTILITY ---------- Large Storage Unit Improved Sensor Array Improved Signal Interpreter Terrain Scanner Terrain Scan Processor > --- WEAPON ----------- Advanced EMP Blaster Advanced EMP Blaster > --- INVENTORY -------- Light Deuterium Engine Heat Sink Improved Heat Sink Structural Scanner Seismic Detector Medium Laser Heavy Assault Rifle Shotgun Advanced EMP Blaster Advanced EMP Blaster Advanced EMP Blaster Advanced EMP Blaster Advanced EMP Blaster Plasma Cutter [Rating: 30] Favorites ----------- Power Improved Ion Engine Engine Improved Ion Engine Propulsion Wheel Wheel Wheel Utility Large Storage Unit Device Improved Terrain Scanner Storage Large Storage Unit Processor Terrain Scan Processor Weapon Assault Rifle Energy Gun Subdweller Laser Ballistic Gun Assault Rifle Launcher Advanced EMP Blaster Build | -11 -10 -10 -8 -8 ------- Run | Yrd Mat Sub Mat Sto Slots Evolved 4 | . . . 4 . Power 1 | . . . 1 . Propulsion . | . . . . . Utility 3 | . . . 3 . Weapon . | . . . . . Parts Attached 42 | 7 8 4 10 13 Power 8 | 1 1 . 1 5 Engine 8 | 1 1 . 1 5 Core . | . . . . . Reactor . | . . . . . Propulsion 9 | 2 2 2 2 1 Treads . | . . . . . Leg . | . . . . . Wheel 9 | 2 2 2 2 1 Hover . | . . . . . Flight . | . . . . . Utility 14 | 2 3 1 6 2 Device 8 | 1 . 1 4 2 Storage 3 | 1 2 . . . Processor 3 | . 1 . 2 . Hackware . | . . . . . Protection . | . . . . . Artifact . | . . . . . Weapon 11 | 2 2 1 1 5 Energy Gun 5 | 1 1 1 . 2 Energy Cannon . | . . . . . Ballistic Gun 3 | 1 1 . 1 . Ballistic Cannon . | . . . . . Launcher 3 | . . . . 3 Special Weapon . | . . . . . Impact Weapon . | . . . . . Slashing Weapon . | . . . . . Piercing Weapon . | . . . . . Special Melee Weapon . | . . . . . Unidentified Prototypes 3 | . . . . 3 Parts Lost 18 | . 2 6 . 10 Power 4 | . . . . 4 Propulsion 7 | . 1 3 . 3 Utility 3 | . 1 1 . 1 Weapon 4 | . . 2 . 2 Highest Loss Streak 8 | . 1 6 . 8 To Critical Strikes . | . . . . . Average Backups 11 | . 9 13 12 13 Power 4 | . 3 5 5 3 Propulsion . | . 1 1 . . Utility 2 | . 1 3 2 3 Weapon 2 | . 1 2 1 3 Tool/Special . | . . . . . Unused Backups 17 | . 1 2 2 12 Power 4 | . 1 . 2 1 Propulsion . | . . . . . Utility 2 | . . . . 2 Weapon 8 | . . 2 . 6 Tool/Special 3 | . . . . 3 Average Slot Usage (%) 95 | . 99 98 87 91 Engine 15 | . 14 14 18 16 Wheel 22 | . 27 26 18 15 Device 13 | . 9 13 16 15 Storage 11 | . 14 14 9 8 Processor 7 | . 4 . 8 17 Energy Gun 12 | . 14 18 11 4 Ballistic Gun 9 | . 14 9 6 4 Launcher 1 | . . . . 7 Peak Build Rating 30 | 9 12 13 22 30 Average Rating 14 | 5 10 11 18 23 On Entrance 10 | . 9 12 11 22 Avg Prop Armor Cover (%) . | . . . . . Naked Turns 22 | . . . . 22 Heaviest Build 50 | 14 32 35 44 50 Greatest Support 26 | 20 20 26 26 20 Greatest Overweight (x) 4 | . 1 3 2 4 Average Overweight (x) 1 | . . 1 1 1 Largest Inventory Capacity 15 | 8 15 15 15 15 Average Capacity 14 | 7 13 15 15 14 Most Carried 15 | 3 15 15 15 15 Average Carried 11 | . 9 13 12 13 Final Capacity 15 | 8 15 15 15 5 Final Carried 15 | 3 15 11 13 5 Class Distribution -------------------- 76% | Mutant 16% | Scavenger-Skirmisher 3% | Skirmisher 3% | Scavenger-Mutant Dominant Class ---------------- Mutant | -10/Materials Mutant | -10/Subcaves Scavenger-Skirmisher | -8/Materials Mutant | -8/Storage Resources | -11 -10 -10 -8 -8 ----------- Run | Yrd Mat Sub Mat Sto Matter Collected 896 | 256 259 95 116 170 Remotely . | . . . . . Salvage Created 2234 | 14 539 134 116 1431 Parts 129 | 4 34 10 6 75 Haulers Intercepted 3 | . 1 . . 2 Recyclers Shooed 3 | . 3 . . . Parts Field Recycled . | . . . . . Retrieved Matter . | . . . . . Parts Self-Destructed 12 | . . 12 . . Prevented . | . . . . . Parts Restored . | . . . . . Kills | -11 -10 -10 -8 -8 ------- Run | Yrd Mat Sub Mat Sto Combat Hostiles Destroyed 42 | . 13 4 2 23 Guns 20 | . 13 4 2 1 AOE 19 | . . . . 19 Classes Destroyed 14 | 1 6 1 . 6 Worker 1 | . . . . 1 Builder 5 | . 2 . 1 2 Tunneler 1 | 1 . . . . Hauler 3 | . 1 . . 2 Recycler 3 | . 2 . . 1 Mechanic 1 | . . . . 1 Watcher 2 | . 1 . . 1 Swarmer 13 | . 9 2 . 2 Grunt 19 | . 4 . 2 13 Brawler 4 | . . . . 4 Duelist 1 | . . . . 1 Protector 2 | . . . . 2 Sentry 1 | . . . . 1 Subdweller 2 | . . 2 . . Best Kill Streak 13 | 1 6 1 2 13 Combat Bots Only 10 | . 6 1 1 10 Max Kills in Single Turn 4 | 1 1 1 1 4 Gunslinging . | . . . . . Exploded 3 | . . . . 3 Melee . | . . . . . Uniques/NPCs Destroyed . | . . . . . Combat | -11 -10 -10 -8 -8 -------- Run | Yrd Mat Sub Mat Sto Hostile Shots Fired 197 | . 57 46 10 84 Missed 61 | . 18 15 2 26 Hits 136 | . 39 31 8 58 Melee 3 | . . . . 3 Projectile 133 | . 39 31 8 55 Critical Strikes 9 | . . . . 9 Damage Taken 2175 | . 343 515 122 1195 Core 782 | . 141 88 44 509 Absorbed by Shields . | . . . . . Core Remaining (%) 54 | 100 . 8 . . Volleys Fired 105 | 1 54 21 9 20 Largest 2 | 2 2 2 2 2 Hottest 111 | 60 70 110 110 111 Shots Fired 206 | 2 108 42 17 37 Gun 178 | 2 108 42 17 9 Cannon . | . . . . . Launcher 28 | . . . . 28 Special . | . . . . . Kinetic 81 | 1 54 18 5 3 Thermal 97 | 1 54 24 12 6 Explosive . | . . . . . Electromagnetic 28 | . . . . 28 Robot Hit Streak 15 | 1 13 15 14 15 Robot Miss Streak 4 | . 4 3 1 2 Penetration Max . | . . . . . Secondary Targets 3 | . 2 1 . . Max Gunslinging Chain 1 | . 1 1 . . Shots Hit Robots 138 | 1 72 27 14 24 Core Hits 85 | 1 26 6 6 46 Critical Kills 2 | . 1 1 . . Critical Parts Destroyed 3 | . . 1 1 1 Critical Strikes 6 | . 2 2 1 1 Burn 1 | . 1 . . . Destroy 5 | . 1 2 1 1 Melee Attacks . | . . . . . Impact . | . . . . . Slashing . | . . . . . Piercing . | . . . . . Sneak Attacks . | . . . . . Combat Hostiles . | . . . . . Follow-up Attacks . | . . . . . Damage Inflicted 4659 | 12 886 436 241 3084 Guns 1711 | 12 886 436 241 136 Cannons . | . . . . . Explosions 2946 | . . . . 2946 Melee . | . . . . . Ramming 2 | . . . . 2 Kinetic 740 | . 480 136 70 54 Thermal 1532 | 12 406 300 171 643 Explosive . | . . . . . Electromagnetic 2385 | . . . . 2385 Impact . | . . . . . Slashing . | . . . . . Piercing . | . . . . . Highest Corruption 4 | . . . . 4 Average Corruption 2 | . . . . 2 Corruption Purged . | . . . . . Corruption Blocked . | . . . . . Overload Shots . | . . . . . Overflow Damage 95 | . . . . 95 Projectiles . | . . . . . Explosions 95 | . . . . 95 Melee . | . . . . . Knockbacks . | . . . . . Impact . | . . . . . Kinetic . | . . . . . Secondary . | . . . . . Self-Inflicted Damage 242 | . . . . 242 Shots 10 | . . . . 10 Rammed 1 | . . . . 1 Targets Rammed 1 | . . . . 1 Kicked . | . . . . . Crushed . | . . . . . Highest Temperature 231 | . 126 13 231 201 Average Temperature 46 | . 25 8 96 71 Received Heat Transfer 846 | . 84 123 72 567 Effects 5 | . . . 5 . Interference 5 | . . . 5 . Siege Activations . | . . . . . Martial Activations . | . . . . . Shielding Activations . | . . . . . Robots Disrupted . | . . . . . Combat Hostiles . | . . . . . Robots Corrupted 3 | . . . . 3 Combat Hostiles 3 | . . . . 3 Parts Fried 11 | . . . . 11 Impact Corruptions . | . . . . . Robots Melted . | . . . . . Combat Hostiles . | . . . . . Parts Melted 6 | . 3 2 1 . Heat Transferred 2902 | 25 1093 436 298 1050 Parts Sabotaged . | . . . . . Parts Stolen . | . . . . . Parts Stripped . | . . . . . Power Chain Reactions 17 | . . . . 17 Alert | -11 -10 -10 -8 -8 ------- Run | Yrd Mat Sub Mat Sto Maximum Alert Level 3 | . . . . 3 Low Security (%) 90 | 100 100 . 100 71 Level 1 . | . . . . . Level 2 5 | . . . . 16 Level 3 4 | . . . . 11 Level 4 . | . . . . . Level 5 . | . . . . . High Security . | . . . . . Max Security . | . . . . . Peak Influence 786 | 5 138 . 35 786 Initial . | . . . . . Average 104 | . 67 . 11 206 Influence Increases 1554 | 5 382 50 70 1047 Destroy 0b10 Robot/C 860 | . 260 40 40 520 Destroy 0b10 Robot/NC 95 | 5 30 . 5 55 Destroy Leader 172 | . 54 10 10 98 Allied During Kill 67 | . . . . 67 Successful Hack 13 | . 7 . . 6 Disable Machine 45 | . . . 15 30 Anti-Garrison Action 150 | . . . . 150 Destroy Structure 62 | . 1 . . 61 Lose Combat Pursuer 90 | . 30 . . 60 Influence Decreases 794 | 5 253 179 70 287 Entered New Map 63 | . . 63 . . Time Decay 541 | 5 233 96 70 137 Lost Part 140 | . 20 20 . 100 Lost Ally 50 | . . . . 50 Squads Dispatched 12 | . 2 . 1 9 Investigation 3 | . 1 . 1 1 Extermination . | . . . . . Reinforcement 2 | . 1 . . 1 Assault 5 | . . . . 5 Garrison 2 | . . . . 2 Intercept . | . . . . . Searches Triggered . | . . . . . Construction Impeded 1 | . . . . 1 Haulers Reinforced . | . . . . . Active Scanning Responses . | . . . . . Cargo Convoy Interrupts . | . . . . . Stealth | -11 -10 -10 -8 -8 --------- Run | Yrd Mat Sub Mat Sto Distress Signals 2 | . . . 1 1 Communications Jammed . | . . . . . Distress Signals . | . . . . . Times Spotted 77 | . 19 6 2 50 Peak Tracking Total 13 | . 3 4 2 13 Tactical Retreats 5 | . 1 1 . 3 Traps | -11 -10 -10 -8 -8 ------- Run | Yrd Mat Sub Mat Sto Traps Triggered 1 | . 1 . . . Indirectly . | . . . . . Trap Hack Attempts . | . . . . . Triggered . | . . . . . Disarmed . | . . . . . Reprogrammed . | . . . . . Reused . | . . . . . Traps Extracted . | . . . . . Installed . | . . . . . Triggered . | . . . . . Machines | -11 -10 -10 -8 -8 ---------- Run | Yrd Mat Sub Mat Sto Machines Disabled 4 | . . . 1 3 Max in Single Turn 2 | . . . 1 2 Garrison Access 1 | . . . . 1 Machines Repaired . | . . . . . Machines Dismantled . | . . . . . Machines Sabotaged . | . . . . . Overloaded Fab Kills . | . . . . . Hacking | -11 -10 -10 -8 -8 --------- Run | Yrd Mat Sub Mat Sto Machines Accessed 13 | . 5 2 1 5 Terminals 10 | . 5 . 1 4 Fabricators . | . . . . . Repair Stations . | . . . . . Recycling Units . | . . . . . Scanalyzers . | . . . . . Garrison Access 1 | . . . . 1 Total Hacks 36 | . 18 3 4 11 Successful 20 | . 9 3 2 6 Failed 15 | . 8 . 2 5 Catastrophic 2 | . 1 . . 1 Database Lockouts 1 | . 1 . . . Manual 28 | . 14 . 4 10 Terminals 31 | . 18 . 4 9 Fabricators . | . . . . . Repair Stations . | . . . . . Recycling Units . | . . . . . Scanalyzers . | . . . . . Garrison Access 2 | . . . . 2 Terminal Hacks 12 | . 6 3 1 2 Record 1 | . . 1 . . Robot Analysis 1 | . 1 . . . Open Door 2 | . . 1 . 1 Branch Access Points 1 | . . . . 1 Terminal Index 2 | . 1 . 1 . Locate Traps 1 | . 1 . . . Dispatch Records 1 | . 1 . . . Hauler Manifests 1 | . 1 . . . Zone Layout 1 | . 1 . . . Release Object 1 | . . 1 . . Fabricator Hacks . | . . . . . Repair Station Hacks . | . . . . . Recycling Unit Hacks . | . . . . . Scanalyzer . | . . . . . Garrison Access Hacks . | . . . . . Unauthorized Hacks 8 | . 3 . 1 4 Terminals 8 | . 3 . 1 4 Botnet 6 | . 3 . 1 2 Disrupt 2 | . . . . 2 Fabricators . | . . . . . Repair Stations . | . . . . . Recycling Units . | . . . . . Scanalyzers . | . . . . . Garrison Access . | . . . . . Data Cores Recovered . | . . . . . Used . | . . . . . Hacking Detections 11 | . 5 . 1 5 Full Trace Events 2 | . . . 1 1 Feedback Events . | . . . . . Feedback Blocked . | . . . . . Robot Schematics Acquired . | . . . . . Robots Built . | . . . . . Authchips . | . . . . . Time . | . . . . . Total Robot Build Rating . | . . . . . Part Schematics Acquired . | . . . . . Parts Built . | . . . . . Authchips . | . . . . . Time . | . . . . . Total Part Build Rating . | . . . . . Part Studies Acquired . | . . . . . Parts Repaired . | . . . . . Time . | . . . . . Parts Recycled . | . . . . . Recycled Matter . | . . . . . Retrieved Matter . | . . . . . Retrieved Components . | . . . . . Parts Scanalyzed . | . . . . . Part Schematics Acquired . | . . . . . Parts Damaged . | . . . . . Bothacking | -11 -10 -10 -8 -8 ------------ Run | Yrd Mat Sub Mat Sto Used RIF Installer . | . . . . . Robots Hacked . | . . . . . Non-combat . | . . . . . Combat . | . . . . . Robot Hacks Applied . | . . . . . Relay Couplers Released 1 | . . . . 1 Machine Destruction 1 | . . . . 1 Fabnet Peak Effective % . | . . . . . Robots Rewired . | . . . . . Allies Hacked . | . . . . . Hacks Repelled . | . . . . . Allies | -11 -10 -10 -8 -8 -------- Run | Yrd Mat Sub Mat Sto Total Allies 2 | . . . . 2 Largest Group 2 | . . . . 2 Highest-Rated Group 62 | . . . . 62 Highest-Rated Ally 31 | . . . . 31 Total Orders 2 | . . . . 2 EXPLORE 2 | . . . . 2 Ally Attacks 37 | . . . . 37 Total Damage 548 | . . . . 548 Kills 6 | . . . . 6 Allies Corrupted . | . . . . . Allies Melted . | . . . . . Intel | -11 -10 -10 -8 -8 ------- Run | Yrd Mat Sub Mat Sto Active Infowar (turns) 1567 | 8 442 444 196 477 Optics 167 | . . 132 35 . Sensors 581 | . . . 104 477 Terrain 1171 | 8 442 312 129 280 Structural 66 | . . . 66 . Robot Analysis Total 1 | . 1 . . . Derelict Logs Recovered . | . . . . . Drone Launches 6 | . . . . 6 Drone Recoveries 3 | . . . . 3 Exploration | -11 -10 -10 -8 -8 ------------- Run | Yrd Mat Sub Mat Sto Turns Passed 1883 | 49 636 463 236 499 Spaces Moved 1336 | 40 462 391 151 292 Core 38 | 1 . . . 37 Treads . | . . . . . Legs . | . . . . . Wheels 1298 | 39 462 391 151 255 Hover . | . . . . . Flight . | . . . . . Fastest Speed 50 | 50 80 95 105 50 Average Speed 97 | 79 90 98 108 105 Slowest Speed 140 | 80 95 125 110 140 Overloaded Moves . | . . . . . Propulsion Burnouts . | . . . . . Robots Hopped . | . . . . . Potential Cave-ins . | . . . . . Cave-ins Triggered . | . . . . . Exploration Rate (%) 29 | 3 74 19 9 41 Regions Visited 4 Branch Regions 2 Pre-discovered Areas . | . . . . . Known Exits Taken 1 | . . . 1 . Unknown Exits Taken 3 | 1 1 1 . . Scrap Searched . | . . . . . Spaces Dug . | . . . . . Terrain Destroyed 50 | . . . . 50 Melee . | . . . . . Projectile . | . . . . . AOE 50 | . . . . 50 Terrain Rammed . | . . . . . Walls Destroyed . | . . . . . Machines Disabled . | . . . . . Actions | -11 -10 -10 -8 -8 --------- Run | Yrd Mat Sub Mat Sto Total 1705 | 51 572 426 207 449 Wait 155 | 1 33 2 24 95 Move 1332 | 39 461 390 150 292 Hop . | . . . . . Pick Up 35 | 3 11 3 6 12 Fast Attach 18 | 7 1 1 4 5 Attach 13 | . 2 5 3 3 Detach 4 | . . . 2 2 Swap 16 | . 6 1 3 6 Drop 25 | . 4 3 6 12 Fire 105 | 1 54 21 9 20 Melee . | . . . . . Ram 1 | . . . . 1 Kick . | . . . . . Crush . | . . . . . Escape Stasis . | . . . . . Rewire . | . . . . . Trap . | . . . . . Miscellaneous 1 | . . . . 1 Route ------- -11/Scrapyard -10/Materials (discovered 5 exits: [*Mat x3] / [*Min] / *Sub) -10/Subcaves -8/Materials -8/Storage (discovered 1 exit: Rec) History --------- Turn | Location | Event 25 | -11/Scrapyard | Discovered new exit (range 15) 50 | -11/Scrapyard | Entered Materials 193 | -10/Materials | Discovered new exit (range 16) 197 | -10/Materials | Discovered new exit (range 7) 316 | -10/Materials | Build established: Mutant 401 | -10/Materials | Discovered new exit (range 15) 491 | -10/Materials | Central database locked down 508 | -10/Materials | Discovered new exit (range 12) 609 | -10/Materials | Core integrity fell below 50% 642 | -10/Materials | Discovered new exit (range 9) 686 | -10/Materials | Entered Subcaves 907 | -10/Subcaves | Ambushed by Subdwellers from Twisted Machinery 976 | -10/Subcaves | Core integrity fell below 20% 1029 | -10/Subcaves | Lost 6 parts (3n1u2w) 1052 | -10/Subcaves | Discovered new exit (range 5) 1071 | -10/Subcaves | Shifting Twisted Machinery released Sub. Machine Gun 1149 | -10/Subcaves | Entered Materials 1149 | -8/Materials | Evolved 4 slots: Power x1, Utility x3 1264 | -8/Materials | Discovered new exit (range 3) 1384 | -8/Materials | Identified exit to Storage 1385 | -8/Materials | Entered Storage 1618 | -8/Storage | Met a pair of Derelict thieves 1644 | -8/Storage | Garrison activated, responded to threat 1718 | -8/Storage | Identified exit to Recycling 1775 | -8/Storage | Destroyed 9 combat bots 1785 | -8/Storage | First assault squad dispatched 1854 | -8/Storage | Destroyed 10 combat bots 1860 | -8/Storage | Core integrity fell below 50% 1862 | -8/Storage | Released all parts (6) 1880 | -8/Storage | Core integrity fell below 20% 1884 | -8/Storage | Destroyed by Y-45 Defender with Beam Rifle Last Messages --------------- 01861_ Terrain Scan Processor destroyed. 01861_ System corrupted by crushing effect (+3). 01862_ Wheel destroyed. 01862_ Released Lgt. Deuterium Engine. 01862_ Released Imp. Medium Laser. 01862_ Released Imp. Sensor Array. 01862_ Released Lrg. Storage Unit. 01862_ Released Imp. Signal Interpreter. 01862_ Released Terrain Scanner. 01862_ Dropped Med. Laser. 01862_ Dropped Hvy. Assault Rifle. 01863_ Acquired Adv. EMP Blaster. 01864_ L-31 Rogue suffers critical hit (Burn). 01865_ Acquired Adv. EMP Blaster. 01872_ U-05 Engineer lays Concrete. 01872_ Critical hit (Burn: +37). 01872_ Acquired 4 matter. 01873_ U-05 Engineer lays Concrete. 01878_ Slammed into K-01 Serf. 01882_ Critical hit (Burn: +37). Map ----- +----------------------------------------------------+ | ?####??###!*![ /% = !!!#?#??#?#? | | ##########]! [ != "!!!##?#?##?? | | ##?####?#| !! %=% ##T#####???#?#?? | | ##?###### #" [==[=#"#####?####??#?? | | #?##?####/#"""####/##?####?#?##?#### | | ??###### #%######???###???## | | ?###?#?# = #%####?###?#?#?#??#? | | ?????### #%###???????#???? ?? | | ???##?## [/ ###?##???##????#? | | ??###?## # ##??#??#???#? ??? | | #??#??## # #????????#??????? | | ?????#?# # #???????????????? | | ??????## ! # #???????"???????? | | ??????############ #???????????????? | | ??????????#####??# #???????????????? | | ??????????? ??# #???????????????? | | ?????????? """ ?# #???????????????? | | ?????????" """ ?# #???????????????? | | ?????# """ """ # #???????????????? | | ?????# # #???????????????? | | ?????# " #???????????????? | | ?????# # #???????????????? | | ??????####+####### ##??????????????? | | ???????# ##### Y #??????????????? | | ???????+ Y g #??????????????? | | ???????# @ b #??????????????? | | ???????# ##### #??????????????? | | ???????## a#????## ##??????????????? | | ????????# ??????# ??????????????? | | ????????# ???????# #????????????? | | ????????#????????# #????????????? | | ?????????????????# #????????????? | | ?????????????????#+###+#????????????? | | ????????????????????????????????????? | | ????????????????????????????????????? | | ????????????????????????????????????? | | ??????????>?????????????????????????? | | ????????????????????????????????????? | | ????????????????????????????????????? | | ????????????????????????????????????? | | ????????????????????????????????????? | | | | | | | | | | | | | | | | | | | +----------------------------------------------------+ Best States ------------- Heat Dissipation 45 Energy Generation 25 Energy Capacity 430 Matter Stores 300 Matter Capacity 300 Sight Range 21 Robot Scan Range 15 Terrain Scan Range 16 Terrain Scan Density 85 Evasion (%) 50 Targeting Accuracy 5 Item Schematics ----------------- None Robot Schematics ------------------ None Fabricated ------------ Nothing Repaired ---------- Nothing Studied --------- None Alien Tech Used ----------------- None Achievements -------------- None Challenges ------------ None Game ------ Seed AutogunProcessingShifter Manual? 0 Play Time 00:26:14 Cumulative 185.8 hours Start 2026.07.25 @ 23:37:57 End 2026.07.26 @ 00:06:52 Sessions 1 Manual Loads 0 Difficulty Rogue Special Mode None Game No. 104 Rogue 104 Adventurer 0 Explorer 0 Win Type - Total 4 Types 4/0/0/0/0/0/0/0/0/0 Lore% 72 Gallery% 63 Achievement% 54 Wizard Run 0 Options --------- Layout 1 ASCII 0 Keyboard 0 Movement Numpad Keybinds 0 Fullscreen 1 Font 24/Smallcaps Map View 50x35 Zoom Use 0% Tactical HUD 1 Map Filters NONE Filters NONE Steam 1 RUN: 71cf143f-49fd-4d91-b562-e44fc1f5fcdd